[Event "*** Titled Tuesday Blitz"]
[Site "Chess.com"]
[Date "2020.04.14"]
[Round "2"]
[White "misha_chessone"]
[Black "Chessialist"]
[Result "0-1"]
[WhiteElo "2305"]
[BlackElo "2638"]
[TimeControl "180+1"]
[EndTime "10:18:20 PDT"]
[Termination "Chessialist won by resignation"]

1. d4 {[%clk 0:03:00.9]} 1... Nf6 {[%clk 0:02:59.6]} 2. c4 {[%clk 0:03:00.7]}
2... e5 {[%clk 0:02:59.9]} 3. dxe5 {[%clk 0:03:00.4]} 3... Ng4 {[%clk 0:03:00]}
4. Bf4 {[%clk 0:03:00.6]} 4... g5 {[%clk 0:02:59.8]} 5. Bd2 {[%clk 0:02:59.7]}
5... Nxe5 {[%clk 0:02:56.4]} 6. e3 {[%clk 0:02:59.2]} 6... Bg7 {[%clk
0:02:56.3]} 7. Nc3 {[%clk 0:02:58.5]} 7... Nbc6 {[%clk 0:02:56.4]} 8. Be2 {[%clk
0:02:58.3]} 8... d6 {[%clk 0:02:56.2]} 9. Nf3 {[%clk 0:02:58.3]} 9... g4 {[%clk
0:02:53.8]} 10. Nxe5 {[%clk 0:02:54.2]} 10... Nxe5 {[%clk 0:02:54.7]} 11. h3
{[%clk 0:02:54.2]} 11... h5 {[%clk 0:02:52.8]} 12. hxg4 {[%clk 0:02:54]} 12...
hxg4 {[%clk 0:02:52.7]} 13. Rxh8+ {[%clk 0:02:54.5]} 13... Bxh8 {[%clk
0:02:53.6]} 14. Qc2 {[%clk 0:02:46.2]} 14... Be6 {[%clk 0:02:21.3]} 15. O-O-O
{[%clk 0:02:44.2]} 15... Qf6 {[%clk 0:02:12.9]} 16. Nd5 {[%clk 0:02:20.8]} 16...
Bxd5 {[%clk 0:02:12.3]} 17. cxd5 {[%clk 0:02:20.6]} 17... O-O-O {[%clk 0:02:02]}
18. f4 {[%clk 0:02:09.4]} 18... gxf3 {[%clk 0:01:58.3]} 19. gxf3 {[%clk
0:02:08.8]} 19... Nxf3 {[%clk 0:01:47.2]} 20. Bc3 {[%clk 0:01:45.2]} 20... Qg5
{[%clk 0:01:47.2]} 21. Bxf3 {[%clk 0:00:52.5]} 21... Qxe3+ {[%clk 0:01:46.4]}
22. Kb1 {[%clk 0:00:21.9]} 22... Qxf3 {[%clk 0:01:45.7]} 23. Bxh8 {[%clk
0:00:21.5]} 23... Rxh8 {[%clk 0:01:44.9]} 24. Rc1 {[%clk 0:00:20.1]} 24... c5
{[%clk 0:01:10.5]} 25. dxc6 {[%clk 0:00:19.8]} 25... bxc6 {[%clk 0:00:40.2]} 26.
Qxc6+ {[%clk 0:00:18.4]} 26... Qxc6 {[%clk 0:00:40.4]} 27. Rxc6+ {[%clk
0:00:18.9]} 27... Kd7 {[%clk 0:00:39.1]} 28. Ra6 {[%clk 0:00:17.7]} 28... f5
{[%clk 0:00:35.8]} 29. Rxa7+ {[%clk 0:00:17]} 29... Ke6 {[%clk 0:00:36.7]} 30.
Kc2 {[%clk 0:00:16.8]} 30... Rh2+ {[%clk 0:00:36.2]} 31. Kc3 {[%clk 0:00:16.6]}
31... f4 {[%clk 0:00:36.6]} 32. Ra4 {[%clk 0:00:15]} 32... Ke5 {[%clk
0:00:36.5]} 33. Ra5+ {[%clk 0:00:11.9]} 33... d5 {[%clk 0:00:36.3]} 34. Ra8
{[%clk 0:00:11.8]} 34... d4+ {[%clk 0:00:36.4]} 35. Kd3 {[%clk 0:00:11]} 35...
Rh3+ {[%clk 0:00:36.4]} 36. Kd2 {[%clk 0:00:10.5]} 36... Ke4 {[%clk 0:00:32.5]}
37. Re8+ {[%clk 0:00:10.7]} 37... Kf3 {[%clk 0:00:32]} 38. Rd8 {[%clk
0:00:10.8]} 38... Rh2+ {[%clk 0:00:32.2]} 39. Kd3 {[%clk 0:00:10.6]} 39... Rxb2
{[%clk 0:00:31.6]} 40. a4 {[%clk 0:00:09.9]} 40... Ra2 {[%clk 0:00:30.8]} 41.
Rxd4 {[%clk 0:00:09.4]} 41... Kg3 {[%clk 0:00:31.4]} 42. Ke4 {[%clk 0:00:07.8]}
42... f3 {[%clk 0:00:31.4]} 43. Rd3 {[%clk 0:00:07.8]} 43... Rxa4+ {[%clk
0:00:31.6]} 44. Ke3 {[%clk 0:00:07.8]} 44... Ra8 {[%clk 0:00:31.7]} 45. Kd2
{[%clk 0:00:07.2]} 45... Re8 {[%clk 0:00:31]} 46. Rc3 {[%clk 0:00:06.1]} 46...
Kg2 {[%clk 0:00:30.9]} 47. Rc6 {[%clk 0:00:05]} 47... f2 {[%clk 0:00:29.6]} 48.
Rg6+ {[%clk 0:00:05]} 48... Kf1 {[%clk 0:00:29.9]} 49. Rg7 {[%clk 0:00:05]}
49... Re5 {[%clk 0:00:29]} 50. Rg6 {[%clk 0:00:04.7]} 50... Re8 {[%clk
0:00:25.8]} 51. Rg7 {[%clk 0:00:04.3]} 51... Rd8+ {[%clk 0:00:26.4]} 52. Kc2
{[%clk 0:00:04]} 52... Rd5 {[%clk 0:00:23.3]} 53. Rg6 {[%clk 0:00:03.4]} 53...
Ke2 {[%clk 0:00:23.5]} 54. Re6+ {[%clk 0:00:02.6]} 54... Kf3 {[%clk 0:00:24.1]}
55. Rf6+ {[%clk 0:00:02.7]} 55... Ke3 {[%clk 0:00:24.8]} 56. Re6+ {[%clk
0:00:02.9]} 56... Kf4 {[%clk 0:00:25]} 57. Rf6+ {[%clk 0:00:02.1]} 57... Rf5
{[%clk 0:00:25.2]} 58. Rxf5+ {[%clk 0:00:02.5]} 58... Kxf5 {[%clk 0:00:26.1]}
0-1

[Event "*** Titled Tuesday Blitz"]
[Site "Chess.com"]
[Date "2020.04.14"]
[Round "2"]
[White "2165149677570"]
[Black "Dhaydon19"]
[Result "0-1"]
[WhiteElo "2303"]
[BlackElo "2631"]
[TimeControl "180+1"]
[EndTime "10:18:21 PDT"]
[Termination "Dhaydon19 won by resignation"]

1. e4 {[%clk 0:03:00.9]} 1... c6 {[%clk 0:02:36.9]} 2. d4 {[%clk 0:02:57.5]}
2... d5 {[%clk 0:02:37.8]} 3. e5 {[%clk 0:02:57.3]} 3... Bf5 {[%clk 0:02:32.6]}
4. Nf3 {[%clk 0:02:56.7]} 4... e6 {[%clk 0:02:27.3]} 5. Be2 {[%clk 0:02:56.8]}
5... c5 {[%clk 0:02:25.6]} 6. O-O {[%clk 0:02:53.3]} 6... Nc6 {[%clk 0:02:24.1]}
7. Nbd2 {[%clk 0:02:30.2]} 7... cxd4 {[%clk 0:02:13.1]} 8. Nb3 {[%clk
0:02:25.8]} 8... Nge7 {[%clk 0:02:06.4]} 9. Nbxd4 {[%clk 0:02:18.3]} 9... Bg6
{[%clk 0:02:05.4]} 10. c3 {[%clk 0:01:32.6]} 10... a6 {[%clk 0:01:56]} 11. Qb3
{[%clk 0:01:21.9]} 11... Qc7 {[%clk 0:01:52.5]} 12. Bf4 {[%clk 0:01:21]} 12...
Nf5 {[%clk 0:01:45]} 13. Nxf5 {[%clk 0:00:41.2]} 13... Bxf5 {[%clk 0:01:39.5]}
14. c4 {[%clk 0:00:41.5]} 14... d4 {[%clk 0:01:24.1]} 15. Bd3 {[%clk 0:00:21.1]}
15... Bxd3 {[%clk 0:01:15.8]} 16. Qxd3 {[%clk 0:00:22]} 16... Bc5 {[%clk
0:01:09.7]} 17. a3 {[%clk 0:00:18.6]} 17... a5 {[%clk 0:01:08.5]} 18. Rae1
{[%clk 0:00:06.7]} 18... h6 {[%clk 0:01:04.1]} 19. h4 {[%clk 0:00:05.8]} 19...
Rd8 {[%clk 0:01:00.1]} 20. g3 {[%clk 0:00:04]} 20... a4 {[%clk 0:00:59]} 21. Nd2
{[%clk 0:00:04.4]} 21... Be7 {[%clk 0:00:40.2]} 22. Nf3 {[%clk 0:00:03.2]} 22...
Na5 {[%clk 0:00:36.2]} 23. Nxd4 {[%clk 0:00:01.3]} 23... Qxc4 {[%clk 0:00:31.1]}
24. Qxc4 {[%clk 0:00:01.4]} 24... Nxc4 {[%clk 0:00:32]} 25. Nb5 {[%clk
0:00:01.8]} 25... O-O {[%clk 0:00:19.6]} 26. Nd6 {[%clk 0:00:02.7]} 26... Nxd6
{[%clk 0:00:15.8]} 27. exd6 {[%clk 0:00:03.6]} 27... Bxd6 {[%clk 0:00:15.1]} 28.
Bxd6 {[%clk 0:00:04.5]} 28... Rxd6 {[%clk 0:00:10.5]} 29. Re4 {[%clk 0:00:05.1]}
29... b5 {[%clk 0:00:11]} 30. Rb4 {[%clk 0:00:05.4]} 30... Rb6 {[%clk
0:00:11.9]} 31. Rc1 {[%clk 0:00:05.8]} 31... Rfb8 {[%clk 0:00:12.6]} 32. Rc5
{[%clk 0:00:06.1]} 32... Kf8 {[%clk 0:00:13.5]} 33. Kf1 {[%clk 0:00:06.5]} 33...
Ke7 {[%clk 0:00:14.2]} 34. Ke2 {[%clk 0:00:07.4]} 34... Kd6 {[%clk 0:00:15]} 35.
Rc3 {[%clk 0:00:07.9]} 35... Rc6 {[%clk 0:00:15.5]} 36. Rd3+ {[%clk 0:00:07.9]}
36... Kc7 {[%clk 0:00:16.2]} 37. Rd2 {[%clk 0:00:08.2]} 37... Rc4 {[%clk
0:00:16.3]} 38. Rxc4+ {[%clk 0:00:08]} 38... bxc4 {[%clk 0:00:17.2]} 39. Ke3
{[%clk 0:00:08.9]} 39... Kc6 {[%clk 0:00:17.9]} 40. Rc2 {[%clk 0:00:09.5]} 40...
Kc5 {[%clk 0:00:18.3]} 41. Ke4 {[%clk 0:00:09.7]} 41... Rd8 {[%clk 0:00:18]} 42.
Ke3 {[%clk 0:00:09.1]} 42... Rd3+ {[%clk 0:00:18]} 43. Ke2 {[%clk 0:00:09.2]}
43... f6 {[%clk 0:00:18.9]} 44. Rc3 {[%clk 0:00:06.2]} 44... Rxc3 {[%clk
0:00:17.8]} 45. bxc3 {[%clk 0:00:07.1]} 45... e5 {[%clk 0:00:18.3]} 46. Ke3
{[%clk 0:00:07.9]} 46... f5 {[%clk 0:00:18.7]} 47. Kf3 {[%clk 0:00:07.7]} 47...
Kd5 {[%clk 0:00:19]} 48. Ke3 {[%clk 0:00:08.4]} 48... g6 {[%clk 0:00:19.5]} 49.
Kf3 {[%clk 0:00:08.5]} 49... e4+ {[%clk 0:00:19.8]} 50. Ke3 {[%clk 0:00:08.9]}
50... Ke5 {[%clk 0:00:20.2]} 51. f4+ {[%clk 0:00:05.8]} 51... exf3 {[%clk
0:00:20.3]} 52. Kxf3 {[%clk 0:00:06.7]} 52... g5 {[%clk 0:00:21.2]} 53. hxg5
{[%clk 0:00:06.5]} 53... hxg5 {[%clk 0:00:22.1]} 54. Ke3 {[%clk 0:00:07.1]}
54... f4+ {[%clk 0:00:22.5]} 55. gxf4+ {[%clk 0:00:08]} 55... gxf4+ {[%clk
0:00:22.7]} 56. Kf3 {[%clk 0:00:08.3]} 56... Kf5 {[%clk 0:00:23.3]} 57. Kf2
{[%clk 0:00:08.8]} 57... Ke4 {[%clk 0:00:24.2]} 58. Ke2 {[%clk 0:00:09.4]} 58...
f3+ {[%clk 0:00:24.6]} 59. Kf2 {[%clk 0:00:09.9]} 59... Kd3 {[%clk 0:00:25.5]}
60. Kxf3 {[%clk 0:00:10.4]} 60... Kxc3 {[%clk 0:00:26.4]} 61. Ke3 {[%clk
0:00:10.7]} 61... Kb2 {[%clk 0:00:27.1]} 62. Kd2 {[%clk 0:00:11.6]} 62... c3+
{[%clk 0:00:28]} 0-1

[Event "*** Titled Tuesday Blitz"]
[Site "Chess.com"]
[Date "2020.04.14"]
[Round "2"]
[White "atalz0"]
[Black "Kirill_Klukin"]
[Result "0-1"]
[WhiteElo "2390"]
[BlackElo "2726"]
[TimeControl "180+1"]
[EndTime "10:18:22 PDT"]
[Termination "Kirill_Klukin won on time"]

1. d4 {[%clk 0:03:00.9]} 1... Nf6 {[%clk 0:02:58]} 2. c4 {[%clk 0:02:59.4]} 2...
Nc6 {[%clk 0:02:57.9]} 3. Nf3 {[%clk 0:02:58.7]} 3... e6 {[%clk 0:02:57.1]} 4.
Nc3 {[%clk 0:02:57.1]} 4... Bb4 {[%clk 0:02:56.6]} 5. Qc2 {[%clk 0:02:55.8]}
5... d6 {[%clk 0:02:51.2]} 6. Bd2 {[%clk 0:02:55.1]} 6... O-O {[%clk 0:02:45.1]}
7. a3 {[%clk 0:02:54.7]} 7... Bxc3 {[%clk 0:02:43.8]} 8. Bxc3 {[%clk 0:02:55.6]}
8... a5 {[%clk 0:02:42.8]} 9. e3 {[%clk 0:02:54.8]} 9... Qe7 {[%clk 0:02:42.6]}
10. Be2 {[%clk 0:02:49.7]} 10... e5 {[%clk 0:02:40]} 11. dxe5 {[%clk 0:02:48.8]}
11... dxe5 {[%clk 0:02:39.6]} 12. h3 {[%clk 0:02:47.6]} 12... b6 {[%clk
0:02:34.4]} 13. O-O {[%clk 0:02:45.7]} 13... Bb7 {[%clk 0:02:34.5]} 14. Rfd1
{[%clk 0:02:34.4]} 14... Rfd8 {[%clk 0:02:34.3]} 15. Rxd8+ {[%clk 0:02:22.6]}
15... Rxd8 {[%clk 0:02:35.2]} 16. Rd1 {[%clk 0:02:20.2]} 16... Nd7 {[%clk
0:02:11.1]} 17. Bd3 {[%clk 0:01:57.6]} 17... g6 {[%clk 0:02:00.3]} 18. Be4
{[%clk 0:01:56.1]} 18... f6 {[%clk 0:01:57.2]} 19. h4 {[%clk 0:01:14.5]} 19...
Kg7 {[%clk 0:01:47.6]} 20. h5 {[%clk 0:01:12.3]} 20... Nf8 {[%clk 0:01:47.2]}
21. Rxd8 {[%clk 0:01:01]} 21... Nxd8 {[%clk 0:01:46.9]} 22. Bxb7 {[%clk
0:00:57.3]} 22... Nxb7 {[%clk 0:01:47.8]} 23. Qe4 {[%clk 0:00:56.1]} 23... Nc5
{[%clk 0:01:45.1]} 24. Qh4 {[%clk 0:00:50.5]} 24... Na4 {[%clk 0:01:37.3]} 25.
Bxe5 {[%clk 0:00:46.5]} 25... Nd7 {[%clk 0:01:27.5]} 26. Bxc7 {[%clk 0:00:31.5]}
26... Nxb2 {[%clk 0:01:27.1]} 27. hxg6 {[%clk 0:00:27.1]} 27... hxg6 {[%clk
0:01:26.3]} 28. Qd4 {[%clk 0:00:25.5]} 28... Na4 {[%clk 0:01:24.6]} 29. Ng5
{[%clk 0:00:20.5]} 29... Nac5 {[%clk 0:01:02.3]} 30. Bd6 {[%clk 0:00:16.2]}
30... Qe8 {[%clk 0:01:02.3]} 31. Bxc5 {[%clk 0:00:11.7]} 31... Nxc5 {[%clk
0:01:00.4]} 32. Nf3 {[%clk 0:00:08.7]} 32... Qe7 {[%clk 0:00:54.9]} 33. Qd5
{[%clk 0:00:08.9]} 33... Ne6 {[%clk 0:00:41.9]} 34. Nd4 {[%clk 0:00:07.8]} 34...
Nxd4 {[%clk 0:00:41.3]} 35. Qxd4 {[%clk 0:00:05.7]} 35... Qxa3 {[%clk
0:00:37.4]} 36. Qxb6 {[%clk 0:00:05.7]} 36... Qa1+ {[%clk 0:00:36.9]} 37. Kh2
{[%clk 0:00:05.1]} 37... Qe5+ {[%clk 0:00:37.4]} 38. f4 {[%clk 0:00:04.1]} 38...
Qh5+ {[%clk 0:00:36.4]} 39. Kg3 {[%clk 0:00:03.5]} 39... Qe2 {[%clk 0:00:32.3]}
40. c5 {[%clk 0:00:03.7]} 40... Qxe3+ {[%clk 0:00:32]} 41. Kh2 {[%clk
0:00:02.4]} 41... Qxf4+ {[%clk 0:00:28.8]} 42. g3 {[%clk 0:00:02.8]} 42... Qf2+
{[%clk 0:00:27.7]} 43. Kh3 {[%clk 0:00:03.3]} 43... a4 {[%clk 0:00:19]} 44. Qc7+
{[%clk 0:00:01.9]} 44... Kh6 {[%clk 0:00:13.2]} 45. Qf4+ {[%clk 0:00:01.9]}
45... Qxf4 {[%clk 0:00:13.3]} 46. gxf4 {[%clk 0:00:02.8]} 46... a3 {[%clk
0:00:14.1]} 47. c6 {[%clk 0:00:03.3]} 47... a2 {[%clk 0:00:14.7]} 48. c7 {[%clk
0:00:02.7]} 48... a1=Q {[%clk 0:00:15.1]} 49. c8=Q {[%clk 0:00:03.1]} 49... Qf1+
{[%clk 0:00:15.2]} 50. Kg3 {[%clk 0:00:02.6]} 50... Qg1+ {[%clk 0:00:15.6]} 51.
Kf3 {[%clk 0:00:02.4]} 51... Qh1+ {[%clk 0:00:15.6]} 52. Kg3 {[%clk 0:00:02.6]}
52... Qe1+ {[%clk 0:00:15.5]} 53. Kf3 {[%clk 0:00:03]} 53... Qd1+ {[%clk
0:00:15.8]} 54. Kg3 {[%clk 0:00:03.3]} 54... Qd3+ {[%clk 0:00:15.5]} 55. Kg2
{[%clk 0:00:02.6]} 55... Qe4+ {[%clk 0:00:15.3]} 56. Kg3 {[%clk 0:00:03]} 56...
Qe3+ {[%clk 0:00:15.6]} 57. Kg4 {[%clk 0:00:01.4]} 57... f5+ {[%clk 0:00:15.8]}
0-1

[Event "*** Titled Tuesday Blitz"]
[Site "Chess.com"]
[Date "2020.04.14"]
[Round "2"]
[White "Kotofeyca"]
[Black "NastaJ"]
[Result "1-0"]
[WhiteElo "2376"]
[BlackElo "1951"]
[TimeControl "180+1"]
[EndTime "10:18:23 PDT"]
[Termination "Kotofeyca won on time"]

1. d4 {[%clk 0:03:00.9]} 1... Nf6 {[%clk 0:02:59.3]} 2. c4 {[%clk 0:03:00.5]}
2... e6 {[%clk 0:02:59.1]} 3. Nf3 {[%clk 0:03:00.2]} 3... b6 {[%clk 0:02:57.5]}
4. g3 {[%clk 0:03:00]} 4... Bb7 {[%clk 0:02:57.4]} 5. Bg2 {[%clk 0:03:00.1]}
5... Be7 {[%clk 0:02:57.1]} 6. Nc3 {[%clk 0:02:59.2]} 6... d5 {[%clk 0:02:55.3]}
7. cxd5 {[%clk 0:02:57.2]} 7... exd5 {[%clk 0:02:55.3]} 8. O-O {[%clk
0:02:58.1]} 8... O-O {[%clk 0:02:55.2]} 9. Bf4 {[%clk 0:02:57.9]} 9... Nbd7
{[%clk 0:02:49.9]} 10. Rc1 {[%clk 0:02:57.5]} 10... c5 {[%clk 0:02:43.3]} 11.
Nb5 {[%clk 0:02:46.6]} 11... Ne4 {[%clk 0:02:36.9]} 12. dxc5 {[%clk 0:02:34.9]}
12... bxc5 {[%clk 0:02:36.5]} 13. Nc7 {[%clk 0:02:33]} 13... Rc8 {[%clk
0:02:34]} 14. Nxd5 {[%clk 0:02:29.9]} 14... Bxd5 {[%clk 0:02:20]} 15. Qxd5
{[%clk 0:02:30.8]} 15... Ndf6 {[%clk 0:02:19.2]} 16. Qxd8 {[%clk 0:02:13.4]}
16... Rfxd8 {[%clk 0:02:19.2]} 17. Rfd1 {[%clk 0:02:02.6]} 17... Rxd1+ {[%clk
0:02:16.9]} 18. Rxd1 {[%clk 0:02:01.9]} 18... Ng4 {[%clk 0:02:13.8]} 19. Rf1
{[%clk 0:01:51.6]} 19... Bf6 {[%clk 0:02:07.8]} 20. h3 {[%clk 0:01:43.4]} 20...
Ngxf2 {[%clk 0:01:56.1]} 21. Rxf2 {[%clk 0:01:44.3]} 21... Nxf2 {[%clk
0:01:56.4]} 22. Kxf2 {[%clk 0:01:45.1]} 22... Bxb2 {[%clk 0:01:56.6]} 23. Ne1
{[%clk 0:01:27.6]} 23... c4 {[%clk 0:01:56.2]} 24. Be4 {[%clk 0:01:27.4]} 24...
c3 {[%clk 0:01:08.7]} 25. Bc2 {[%clk 0:01:27.1]} 25... Ba3 {[%clk 0:01:05.7]}
26. Nd3 {[%clk 0:01:23.6]} 26... h6 {[%clk 0:01:00.7]} 27. e4 {[%clk 0:01:22.9]}
27... Kf8 {[%clk 0:01:00.5]} 28. Ke2 {[%clk 0:01:21.1]} 28... Ke7 {[%clk
0:00:59.8]} 29. Be5 {[%clk 0:01:20.4]} 29... f6 {[%clk 0:00:58.9]} 30. Bd4
{[%clk 0:01:20.9]} 30... a6 {[%clk 0:00:57.2]} 31. Nf4 {[%clk 0:01:18]} 31...
Bd6 {[%clk 0:00:41.3]} 32. Nd5+ {[%clk 0:01:15.8]} 32... Kf7 {[%clk 0:00:37.5]}
33. g4 {[%clk 0:01:11.9]} 33... Be5 {[%clk 0:00:33.7]} 34. Bxe5 {[%clk
0:01:07.5]} 34... fxe5 {[%clk 0:00:33.9]} 35. Kd3 {[%clk 0:01:08.4]} 35... Kg6
{[%clk 0:00:29.4]} 36. Nxc3 {[%clk 0:01:04.6]} 36... Kg5 {[%clk 0:00:26.6]} 37.
Nd5 {[%clk 0:01:02.5]} 37... Kh4 {[%clk 0:00:26.5]} 38. Ne7 {[%clk 0:00:56.5]}
38... Rd8+ {[%clk 0:00:26.1]} 39. Ke3 {[%clk 0:00:57]} 39... Kxh3 {[%clk
0:00:26]} 40. Nf5 {[%clk 0:00:48]} 40... Kxg4 {[%clk 0:00:19.5]} 41. Nxg7 {[%clk
0:00:47.2]} 41... h5 {[%clk 0:00:19.4]} 42. Bb3 {[%clk 0:00:42]} 42... h4 {[%clk
0:00:09.7]} 43. Be6+ {[%clk 0:00:41.3]} 43... Kg3 {[%clk 0:00:09]} 44. Nf5+
{[%clk 0:00:39.4]} 44... Kg4 {[%clk 0:00:09.2]} 45. Ne7+ {[%clk 0:00:34.6]}
45... Kg3 {[%clk 0:00:08.2]} 46. Nc6 {[%clk 0:00:33.9]} 46... Rf8 {[%clk
0:00:06.6]} 47. Bf5 {[%clk 0:00:25.5]} 47... h3 {[%clk 0:00:06.4]} 48. Bxh3
{[%clk 0:00:19.4]} 48... Kxh3 {[%clk 0:00:05.9]} 49. Nxe5 {[%clk 0:00:20.3]}
49... Rg8 {[%clk 0:00:05]} 50. Kd4 {[%clk 0:00:19.7]} 50... Rg2 {[%clk
0:00:03.5]} 51. a3 {[%clk 0:00:19.6]} 51... Ra2 {[%clk 0:00:03.5]} 52. Nc4
{[%clk 0:00:20.5]} 52... Kg4 {[%clk 0:00:03.6]} 53. e5 {[%clk 0:00:21.2]} 53...
Kf5 {[%clk 0:00:03.8]} 54. Kd5 {[%clk 0:00:21.6]} 54... Ra1 {[%clk 0:00:02.9]}
55. Nd6+ {[%clk 0:00:20.5]} 1-0

[Event "*** Titled Tuesday Blitz"]
[Site "Chess.com"]
[Date "2020.04.14"]
[Round "2"]
[White "Alonmindlin"]
[Black "krasavetc"]
[Result "1-0"]
[WhiteElo "2714"]
[BlackElo "2499"]
[TimeControl "180+1"]
[EndTime "10:18:24 PDT"]
[Termination "Alonmindlin won by resignation"]

1. d4 {[%clk 0:03:00.9]} 1... Nf6 {[%clk 0:02:59.1]} 2. c4 {[%clk 0:03:00.5]}
2... e6 {[%clk 0:02:59.7]} 3. Nc3 {[%clk 0:02:59.1]} 3... Bb4 {[%clk 0:02:59.4]}
4. e3 {[%clk 0:02:59.2]} 4... O-O {[%clk 0:02:59.3]} 5. Bd3 {[%clk 0:02:59.5]}
5... d6 {[%clk 0:02:59.3]} 6. Nf3 {[%clk 0:02:54]} 6... Nbd7 {[%clk 0:02:59.1]}
7. O-O {[%clk 0:02:46.6]} 7... Bxc3 {[%clk 0:02:59.2]} 8. bxc3 {[%clk
0:02:46.8]} 8... e5 {[%clk 0:02:59.6]} 9. Nd2 {[%clk 0:02:47.7]} 9... b6 {[%clk
0:02:56.2]} 10. e4 {[%clk 0:02:47.4]} 10... Bb7 {[%clk 0:02:55.2]} 11. Re1
{[%clk 0:02:47.2]} 11... Re8 {[%clk 0:02:55.1]} 12. a4 {[%clk 0:02:37.8]} 12...
a5 {[%clk 0:02:54.4]} 13. Bb2 {[%clk 0:02:36]} 13... Qe7 {[%clk 0:02:47]} 14.
Nf1 {[%clk 0:02:32.3]} 14... Ba6 {[%clk 0:02:38.8]} 15. Ne3 {[%clk 0:02:27.5]}
15... g6 {[%clk 0:02:37.6]} 16. f3 {[%clk 0:02:26.6]} 16... Nf8 {[%clk 0:02:33]}
17. Nd5 {[%clk 0:02:22.3]} 17... Nxd5 {[%clk 0:02:31.7]} 18. cxd5 {[%clk
0:02:23.2]} 18... Bxd3 {[%clk 0:02:25]} 19. Qxd3 {[%clk 0:02:22.3]} 19... Nd7
{[%clk 0:02:25.4]} 20. c4 {[%clk 0:02:21.5]} 20... f6 {[%clk 0:02:19.8]} 21.
Rac1 {[%clk 0:02:09.9]} 21... Rf8 {[%clk 0:02:16.9]} 22. Re2 {[%clk 0:02:02]}
22... exd4 {[%clk 0:02:12]} 23. Qxd4 {[%clk 0:02:01.9]} 23... Nc5 {[%clk
0:02:09.5]} 24. Qd1 {[%clk 0:01:59.9]} 24... Qd7 {[%clk 0:02:08.5]} 25. Ra1
{[%clk 0:01:57.1]} 25... Rae8 {[%clk 0:02:07.3]} 26. Bd4 {[%clk 0:01:51.1]}
26... h6 {[%clk 0:02:01.2]} 27. Qc2 {[%clk 0:01:44.8]} 27... Kh7 {[%clk
0:02:00.9]} 28. Bxc5 {[%clk 0:01:30.8]} 28... dxc5 {[%clk 0:02:00.6]} 29. Rae1
{[%clk 0:01:29.3]} 29... Qd6 {[%clk 0:01:59.8]} 30. Qc3 {[%clk 0:01:28.8]} 30...
Qe5 {[%clk 0:01:50.4]} 31. Qd2 {[%clk 0:01:27.4]} 31... g5 {[%clk 0:01:48.4]}
32. g3 {[%clk 0:01:27.8]} 32... Kg7 {[%clk 0:01:39.1]} 33. f4 {[%clk 0:01:25.1]}
33... gxf4 {[%clk 0:01:35]} 34. gxf4 {[%clk 0:01:25.4]} 34... Qh5 {[%clk
0:01:35]} 35. e5 {[%clk 0:01:20]} 35... fxe5 {[%clk 0:01:32]} 36. fxe5 {[%clk
0:01:20.3]} 36... Kh7 {[%clk 0:01:29]} 37. Qd3+ {[%clk 0:01:05.4]} 37... Kh8
{[%clk 0:01:27.2]} 38. e6 {[%clk 0:00:54.3]} 38... Rg8+ {[%clk 0:01:26.4]} 39.
Kh1 {[%clk 0:00:52.1]} 39... Rg4 {[%clk 0:01:24.8]} 40. Rg1 {[%clk 0:00:43.1]}
40... Reg8 {[%clk 0:00:35.4]} 41. Qc3+ {[%clk 0:00:21.4]} 41... Kh7 {[%clk
0:00:29.8]} 42. Qd3+ {[%clk 0:00:20.6]} 42... Kh8 {[%clk 0:00:29.6]} 43. Reg2
{[%clk 0:00:20.8]} 43... Rxg2 {[%clk 0:00:27.9]} 44. Rxg2 {[%clk 0:00:21.3]}
44... Rxg2 {[%clk 0:00:24.7]} 45. Kxg2 {[%clk 0:00:22.2]} 45... Qg4+ {[%clk
0:00:24.4]} 46. Kf1 {[%clk 0:00:18]} 46... Qf4+ {[%clk 0:00:24.6]} 47. Kg2
{[%clk 0:00:17.6]} 47... Qg4+ {[%clk 0:00:24.4]} 48. Qg3 {[%clk 0:00:17.7]}
48... Qe2+ {[%clk 0:00:24.3]} 49. Kh3 {[%clk 0:00:18]} 49... Qxc4 {[%clk
0:00:23.3]} 50. Qe5+ {[%clk 0:00:17.1]} 50... Kh7 {[%clk 0:00:22.8]} 51. Qxc7+
{[%clk 0:00:17.1]} 51... Kg6 {[%clk 0:00:23.1]} 52. Qf7+ {[%clk 0:00:16.9]}
52... Kg5 {[%clk 0:00:23.7]} 53. Qg7+ {[%clk 0:00:17.4]} 53... Kf5 {[%clk
0:00:23.4]} 54. e7 {[%clk 0:00:16]} 54... Qf1+ {[%clk 0:00:20.8]} 55. Qg2 {[%clk
0:00:14.1]} 55... Qd3+ {[%clk 0:00:20.7]} 56. Kh4 {[%clk 0:00:14.4]} 56... Qd4+
{[%clk 0:00:18.4]} 57. Kh5 {[%clk 0:00:14.4]} 57... Qe3 {[%clk 0:00:17.5]} 58.
Qg6+ {[%clk 0:00:13.6]} 58... Kf4 {[%clk 0:00:15.6]} 59. Qxh6+ {[%clk
0:00:13.5]} 59... Kf3 {[%clk 0:00:16.2]} 60. Qxe3+ {[%clk 0:00:14.4]} 60... Kxe3
{[%clk 0:00:17.1]} 61. e8=Q+ {[%clk 0:00:15]} 1-0